bitfinex/quotes_BTCUSD_20260307
["timestamp","ask_amount","ask_price","bid_price","bid_amount"]
[1772867032929,0.07396996,67595.0,67584.0,0.02823944]
[1772867033135,0.07396996,67595.0,67584.0,0.02813944]
[1772867033339,0.07396996,67595.0,67584.0,0.02803944]
[1772867034455,0.07396996,67595.0,67584.0,0.13782951]
[1772867034994,0.10077878,67595.0,67584.0,0.00148]
[1772867035167,0.07396996,67595.0,67584.0,0.00148]
[1772867035375,0.02680882,67594.0,67584.0,0.00148]
[1772867036173,0.07396996,67595.0,67583.0,0.07398284]
[1772867036514,0.07396996,67595.0,67581.0,0.18401537]
[1772867036515,0.02680882,67594.0,67581.0,0.0002422]
[1772867037117,0.02680882,67592.0,67581.0,1e-08]
[1772867037306,0.11636789,67592.0,67584.0,0.0002]
[1772867037515,0.02680882,67589.0,67581.0,1e-08]
[1772867037733,0.02680882,67589.0,67576.0,0.00435593]
[1772867037734,0.00148,67588.0,67576.0,0.00435593]
[1772867037914,0.00148,67588.0,67576.0,0.0783463]
[1772867038115,0.02973696,67588.0,67576.0,0.0783463]
[1772867038735,0.10222911,67593.0,67577.0,0.0278379]
[1772867038911,0.00148,67592.0,67577.0,0.0278379]
[1772867039113,0.07397434,67591.0,67578.0,0.07398857]
[1772867039312,0.1022313,67591.0,67578.0,0.07398857]
[1772867039516,0.02825696,67591.0,67578.0,0.07398857]
[1772867039719,0.00148,67590.0,67578.0,0.07398857]
[1772867040097,0.02973696,67590.0,67578.0,0.07398857]
[1772867041076,0.07396353,67601.0,67578.0,0.07398857]
[1772867041407,0.0002422,67614.0,67578.0,0.07398857]
[1772867041408,0.02825696,67595.0,67578.0,0.21039395]
[1772867041705,0.00751939,67595.0,67578.0,0.18255605]
[1772867041858,0.00751939,67595.0,67580.0,0.0278379]
[1772867042060,0.00751939,67595.0,67582.0,0.0278379]
[1772867042302,0.00148,67596.0,67582.0,0.0278379]
[1772867042500,0.00038546,67597.0,67583.0,0.0278379]
[1772867042702,0.00038546,67597.0,67583.0,0.11128797]
[1772867042703,0.00148,67596.0,67583.0,0.11128797]
[1772867042867,0.00038546,67597.0,67584.0,0.0278379]
[1772867043073,0.02825696,67606.0,67588.0,0.0278379]
[1772867043281,0.04776531,67600.0,67588.0,0.02822336]
[1772867043608,0.02973696,67599.0,67588.0,0.00038546]
[1772867043968,0.07395564,67609.0,67588.0,0.00038546]
[1772867044191,0.10537992,67607.0,67589.0,0.0278379]
[1772867044368,0.00022001,67599.0,67589.0,0.0278379]
[1772867044691,0.00148,67598.0,67589.0,0.0278379]
[1772867044868,0.00148,67598.0,67588.0,0.00038546]
[1772867045466,0.07544768,67598.0,67588.0,0.07436297]
[1772867045686,0.07544708,67598.0,67588.0,0.07436297]
[1772867046175,0.07396708,67598.0,67588.0,0.07436297]
[1772867046526,0.07544708,67598.0,67588.0,0.07436297]
[1772867047485,0.10537992,67603.0,67588.0,0.07436297]
[1772867047486,0.07417816,67606.0,67588.0,0.07436297]
[1772867047687,0.02973696,67603.0,67589.0,0.0278379]
[1772867047888,0.02973696,67603.0,67588.0,0.00038546]
[1772867047889,0.02808396,67600.0,67588.0,0.00038546]
[1772867048090,0.02808396,67599.0,67588.0,0.00038546]
[1772867048650,0.02808396,67599.0,67588.0,0.07436299]
[1772867048817,0.02808396,67599.0,67588.0,0.07536299]
[1772867049032,0.02808396,67599.0,67588.0,0.07426299]
[1772867049913,0.10205064,67598.0,67588.0,0.00028546]
[1772867050111,0.00148,67597.0,67589.0,0.07397653]
[1772867050346,0.00148,67600.0,67590.0,0.02828433]
[1772867050958,0.00148,67600.0,67589.0,0.07397653]
[1772867052162,0.07544463,67600.0,67589.0,0.07397653]
[1772867052376,0.07544463,67600.0,67588.0,0.07426238]
[1772867053350,0.07544463,67600.0,67588.0,0.07446238]
[1772867053553,0.02808396,67599.0,67588.0,0.07446238]
[1772867053752,0.02808396,67599.0,67588.0,0.00048546]
[1772867054046,0.07396668,67598.0,67588.0,0.07446282]
[1772867054242,0.07396668,67598.0,67588.0,0.00048546]
[1772867054947,0.00022001,67600.0,67590.0,0.02828433]
[1772867055150,0.07418453,67600.0,67590.0,0.02828433]
[1772867055347,0.07566453,67600.0,67590.0,0.02828433]
[1772867056083,0.07566453,67600.0,67588.0,0.07446303]
[1772867056438,0.02808396,67599.0,67588.0,0.07446303]
[1772867061773,0.07396668,67598.0,67588.0,0.00048546]
[1772867062853,0.07396668,67598.0,67588.0,0.07446301]
[1772867063174,0.07396668,67598.0,67588.0,0.00048546]
[1772867063589,0.10537992,67597.0,67588.0,1e-08]
[1772867063748,0.13346388,67595.0,67588.0,1e-08]
[1772867063909,0.02956396,67594.0,67588.0,1e-08]
[1772867064253,0.00148,67594.0,67588.0,1e-08]
[1772867066467,0.07397215,67593.0,67588.0,1e-08]
[1772867066622,0.10537992,67591.0,67588.0,1e-08]
[1772867066829,0.02808396,67590.0,67588.0,1e-08]
[1772867067453,0.02808396,67592.0,67588.0,1e-08]
[1772867067664,0.07397215,67593.0,67588.0,1e-08]
[1772867067665,0.10537992,67589.0,67588.0,1e-08]
[1772867067933,0.13346388,67589.0,67588.0,1e-08]
[1772867068096,0.07397215,67593.0,67588.0,1e-08]
[1772867068273,0.00148,67592.0,67588.0,1e-08]
[1772867068474,0.07397434,67591.0,67588.0,1e-08]
[1772867068877,0.00148,67590.0,67588.0,1e-08]
[1772867069102,0.001,67589.0,67588.0,1e-08]
[1772867069439,0.00248,67589.0,67588.0,1e-08]
[1772867069563,0.001,67589.0,67588.0,1e-08]
[1772867069766,0.00248,67589.0,67588.0,1e-08]
[1772867070105,0.00248,67589.0,67581.0,1e-08]
[1772867070106,0.02808396,67587.0,67581.0,1e-08]
[1772867070306,0.02846918,67587.0,67581.0,1e-08]
[1772867070508,0.07397981,67586.0,67581.0,1e-08]
[1772867070677,0.07387981,67586.0,67581.0,1e-08]
[1772867071466,0.02808396,67585.0,67581.0,1e-08]
[1772867072485,0.07387981,67586.0,67581.0,1e-08]
[1772867073376,0.00148,67585.0,67581.0,1e-08]
[1772867074704,0.07546169,67585.0,67581.0,1e-08]
[1772867076082,0.07546169,67585.0,67574.0,9.17e-05]
[1772867076083,0.11596529,67583.0,67566.0,0.07400102]
[1772867076372,0.00038522,67587.0,67572.0,0.02828433]
[1772867076373,0.07436422,67587.0,67572.0,0.02828433]
[1772867076570,0.07436422,67587.0,67573.0,0.02976433]
[1772867076571,0.07584481,67587.0,67573.0,0.02976433]
[1772867076979,0.00186522,67587.0,67574.0,0.07399295]
[1772867077161,0.00186522,67587.0,67575.0,0.02828433]
[1772867077355,0.07584494,67587.0,67575.0,0.02828433]
[1772867078233,0.07584494,67587.0,67576.0,0.11330808]
[1772867078234,0.00038522,67587.0,67576.0,0.11330808]
[1772867078559,0.07397229,67593.0,67581.0,0.02705341]
[1772867078807,0.07397229,67593.0,67581.0,0.02716897]
[1772867079006,0.00148,67594.0,67582.0,0.07398419]
[1772867081112,0.07397215,67593.0,67580.0,0.14012734]
[1772867081312,0.07408769,67593.0,67580.0,0.14012734]
[1772867081989,0.07408769,67593.0,67580.0,0.0754661]
[1772867083354,0.07408769,67593.0,67581.0,0.00148]
[1772867084434,0.11596529,67591.0,67576.0,0.07399059]
[1772867084640,0.02788629,67590.0,67581.0,0.00148]
[1772867084814,0.02788629,67590.0,67576.0,0.07399059]
[1772867085023,0.02788629,67590.0,67579.0,0.00148]
[1772867085222,0.02788629,67590.0,67578.0,0.00148]
[1772867085223,0.07397653,67589.0,67578.0,0.00148]
[1772867085450,0.02788629,67588.0,67578.0,0.00148]
[1772867086044,0.02788629,67588.0,67575.0,0.07399168]
[1772867086248,0.02788629,67588.0,67576.0,0.00148]
[1772867086739,0.02788629,67588.0,67577.0,0.00148]
[1772867087342,0.07397872,67587.0,67576.0,0.0002]
[1772867087540,0.10186501,67587.0,67577.0,0.00148]
[1772867087733,0.10186501,67587.0,67576.0,0.07419041]
[1772867087734,0.07397872,67587.0,67576.0,0.07419041]
[1772867087939,0.07419799,67588.0,67577.0,0.00148]
[1772867088165,0.10208428,67588.0,67577.0,0.00148]
[1772867089028,0.07419799,67588.0,67576.0,0.0002]
[1772867089255,0.02788629,67587.0,67576.0,0.0002]
[1772867089428,0.11596529,67584.0,67574.0,0.0002]
[1772867089637,0.02788629,67583.0,67574.0,0.00168]
[1772867091589,0.07398419,67582.0,67574.0,0.00168]
[1772867092243,0.07398419,67582.0,67574.0,0.0002]
[1772867092450,0.02788629,67581.0,67574.0,0.0002]
[1772867093791,0.02788629,67579.0,67566.0,0.07399953]
[1772867093993,0.02788629,67579.0,67567.0,0.00148]
[1772867094997,0.02788629,67579.0,67568.0,0.00148]
[1772867095161,0.02788629,67579.0,67569.0,0.00148]
[1772867095564,0.07398638,67580.0,67569.0,0.02853341]
[1772867095904,0.07398638,67581.0,67570.0,0.02705341]
[1772867096457,0.07398638,67581.0,67569.0,0.07399818]
[1772867096699,0.02788629,67580.0,67570.0,0.00148]
[1772867097075,0.07398638,67581.0,67570.0,0.02853341]
[1772867097269,0.07398638,67581.0,67572.0,0.02705341]
[1772867097495,0.07398638,67581.0,67570.0,0.00148]
[1772867097496,0.07398638,67581.0,67573.0,0.02705341]
[1772867097919,0.07398091,67585.0,67574.0,0.11241168]
[1772867098120,0.07398091,67585.0,67570.0,0.00148]
[1772867098121,0.10102837,67585.0,67570.0,0.00148]
[1772867098323,0.02704746,67584.0,67570.0,0.07547687]
[1772867098946,0.02704746,67584.0,67569.0,0.21349475]
[1772867098947,0.02704746,67584.0,67569.0,0.13949731]
[1772867099146,0.02704746,67584.0,67571.0,0.00148]
[1772867099344,0.11590747,67583.0,67565.0,0.0797523]
[1772867099556,0.11590747,67583.0,67560.0,0.00148]
[1772867099557,0.00148,67584.0,67560.0,0.00148]
[1772867099558,0.42993126,67580.0,67560.0,0.00148]
[1772867099730,0.02704746,67573.0,67560.0,0.00148]
[1772867099937,0.02704746,67570.0,67560.0,0.00148]
[1772867100531,0.02704746,67569.0,67560.0,0.00148]
[1772867100763,0.07399624,67571.0,67560.0,0.02913549]
[1772867101090,0.07399624,67571.0,67564.0,0.02708563]
[1772867101091,0.00011548,67571.0,67564.0,0.02708563]
[1772867101291,0.07399076,67576.0,67566.0,0.02708563]
[1772867101480,0.07399076,67576.0,67567.0,0.00148]
[1772867101942,0.0739907,67577.0,67567.0,0.00148]
[1772867102145,0.02704746,67576.0,67567.0,0.00148]
[1772867102382,0.02704746,67574.0,67560.0,0.00148]
[1772867102589,0.00148,67573.0,67561.0,0.00056986]
[1772867102893,0.02852746,67573.0,67561.0,0.00056986]
[1772867103095,0.02852746,67573.0,67561.0,0.00036986]
[1772867103297,0.11575251,67573.0,67561.0,0.00026986]
[1772867103451,0.02704746,67572.0,67561.0,0.00016986]
[1772867103649,0.02704746,67572.0,67561.0,6.986e-05]
[1772867103866,0.11575251,67573.0,67561.0,6.986e-05]
[1772867103867,0.00148,67573.0,67561.0,0.11729558]
[1772867104072,0.07399514,67572.0,67562.0,0.02708563]
[1772867104275,0.07399514,67572.0,67562.0,0.02698563]
[1772867104489,0.07399514,67572.0,67562.0,0.02688563]
[1772867104689,0.1010426,67572.0,67560.0,0.00134986]
[1772867104890,0.1010426,67572.0,67560.0,0.00124986]
[1772867105122,0.1010426,67572.0,67560.0,0.00114986]
[1772867105322,0.1010426,67572.0,67560.0,0.00104986]
[1772867105526,0.07399514,67572.0,67560.0,0.00094986]
[1772867105831,0.07399514,67572.0,67561.0,0.07390719]
[1772867106041,0.0274334,67574.0,67562.0,0.02698563]
[1772867106241,0.0274334,67574.0,67560.0,0.00084986]
[1772867106242,0.11465845,67574.0,67560.0,0.00084986]
[1772867106454,0.11465845,67574.0,67552.0,0.11979828]
[1772867106455,0.00575,67565.0,67530.0,0.0001981]
[1772867106608,0.00575,67565.0,67519.0,0.07425055]
[1772867106609,0.08286078,67558.0,67509.0,0.02102148]
[1772867106812,0.08286078,67558.0,67514.0,0.11729558]
[1772867106813,0.00575,67538.0,67514.0,0.11729558]
[1772867107030,0.02704746,67547.0,67517.0,0.02708563]
[1772867107226,0.02704746,67547.0,67511.0,0.07981123]
[1772867107227,0.02704746,67547.0,67521.0,0.02708563]
[1772867107430,0.02704746,67547.0,67524.0,0.11729558]
[1772867107595,0.0004,67550.0,67527.0,0.02708563]
[1772867107795,0.0004,67550.0,67530.0,0.11729558]
[1772867107995,0.0007857,67550.0,67533.0,0.02954191]
[1772867108217,0.0007857,67550.0,67539.0,0.11729558]
[1772867108400,0.0009916,67550.0,67542.0,0.14683749]
[1772867109530,0.0009916,67550.0,67543.0,0.00148]
[1772867109732,0.0009916,67550.0,67543.0,0.14831749]
[1772867110852,0.00148,67566.0,67545.0,0.02954191]
[1772867111070,0.01157633,67566.0,67545.0,0.00011548]
[1772867111592,0.07398922,67578.0,67545.0,0.00011548]
[1772867111594,0.00022001,67583.0,67546.0,0.00148]
[1772867111737,0.00022001,67583.0,67553.0,0.11729558]
[1772867111738,0.01156625,67582.0,67553.0,0.11729558]
[1772867111944,0.01156625,67582.0,67550.0,0.0004]
[1772867111945,0.01156625,67582.0,67557.0,0.02954191]
[1772867112162,0.00022001,67583.0,67555.0,0.02954191]
[1772867112361,0.00022001,67588.0,67557.0,0.02954191]
[1772867112595,0.00022001,67588.0,67560.0,0.11729558]
[1772867112764,0.00022001,67588.0,67563.0,0.074005]
[1772867113494,9.88e-05,67589.0,67564.0,0.02954191]
[1772867113698,9.88e-05,67589.0,67567.0,0.11729558]
[1772867113876,9.88e-05,67589.0,67570.0,0.02954191]
[1772867114210,9.88e-05,67589.0,67575.0,0.11729558]
[1772867114367,0.00022001,67586.0,67578.0,0.02954191]
[1772867114565,0.00022001,67586.0,67580.0,0.11729558]
[1772867114769,0.00022001,67586.0,67581.0,0.07398529]
[1772867114964,0.00022001,67586.0,67583.0,0.02954191]
[1772867115192,0.00575,67592.0,67583.0,0.02954191]
[1772867115439,0.00586571,67592.0,67583.0,0.02954191]
[1772867115910,0.00586571,67592.0,67584.0,0.00148]
[1772867116627,0.00586571,67592.0,67585.0,0.00148]
[1772867117033,0.00022001,67593.0,67585.0,0.03102191]
[1772867117210,0.00022001,67593.0,67586.0,0.00148]
[1772867117415,0.00022001,67593.0,67586.0,0.03102191]
[1772867117614,0.01156513,67594.0,67586.0,0.03102191]
[1772867118517,0.01156513,67594.0,67586.0,0.10500172]
[1772867118727,0.00022001,67597.0,67587.0,0.02954191]
[1772867119109,0.00022001,67597.0,67589.0,0.02954191]
[1772867120059,0.00148,67605.0,67591.0,0.02954191]
[1772867120210,0.00148,67605.0,67594.0,0.11729558]
[1772867120427,0.00148,67605.0,67595.0,0.02954191]
[1772867120992,0.0003265,67607.0,67599.0,0.07396559]
[1772867121190,0.00022001,67612.0,67600.0,0.14683749]
[1772867121410,0.00022001,67612.0,67601.0,0.02954191]
[1772867121815,0.00022001,67605.0,67601.0,0.02954191]
[1772867122018,0.00022001,67605.0,67602.0,0.02954191]
[1772867122221,0.00022001,67605.0,67599.0,0.07544559]
[1772867122629,0.00022001,67605.0,67599.0,0.1049875]
[1772867122844,0.00022001,67612.0,67600.0,0.02954191]
[1772867123021,0.00022001,67612.0,67601.0,0.0739634]
[1772867123232,0.00022001,67612.0,67601.0,0.10350531]
[1772867123436,0.00022001,67612.0,67601.0,0.0739634]
[1772867123604,0.08562251,67618.0,67603.0,0.11729558]
[1772867123605,0.01167739,67618.0,67603.0,0.11729558]
[1772867124029,0.01167739,67618.0,67605.0,0.11729558]
[1772867124210,0.01167739,67618.0,67606.0,0.00148]
[1772867124567,0.01167739,67618.0,67606.0,0.03102191]
[1772867125372,0.01206302,67618.0,67607.0,0.10349874]
[1772867125603,0.01206302,67618.0,67608.0,0.02954191]
[1772867126310,0.0007265,67625.0,67609.0,0.02954191]
[1772867126487,0.00084214,67625.0,67609.0,0.02954191]
[1772867126690,0.02748713,67625.0,67609.0,0.02954191]
[1772867127448,0.10142449,67625.0,67610.0,0.10349546]
[1772867127991,0.10142449,67625.0,67610.0,0.07395355]
[1772867127992,0.02748713,67625.0,67610.0,0.07395355]
[1772867128234,0.11427251,67624.0,67610.0,0.07395355]
[1772867128583,0.1409175,67624.0,67610.0,0.07395355]
[1772867128789,0.02664499,67624.0,67610.0,0.07395355]
[1772867129256,0.02664499,67624.0,67611.0,0.02954191]
[1772867129403,0.10058324,67624.0,67612.0,0.07543136]
[1772867129776,0.02664499,67623.0,67612.0,0.07543136]
[1772867131034,0.02664499,67623.0,67612.0,0.07395136]
[1772867131351,0.07500007,67625.0,67613.0,0.00148]
[1772867131483,0.07500007,67625.0,67614.0,0.07394918]
[1772867132133,0.07500007,67625.0,67614.0,0.10349109]
[1772867132488,0.00106215,67625.0,67615.0,0.11892071]
[1772867132701,0.07392585,67636.0,67614.0,0.07394918]
[1772867132702,0.002,67650.0,67620.0,0.14866677]
[1772867132896,0.02664499,67647.0,67623.0,0.11892071]
[1772867133139,0.02664499,67647.0,67627.0,0.02954191]
[1772867133140,0.02812499,67647.0,67627.0,0.02954191]
[1772867133337,0.02812499,67647.0,67630.0,0.11892071]
[1772867133540,0.0739142,67646.0,67633.0,0.02954191]
[1772867133741,0.0739142,67646.0,67633.0,0.03102191]
[1772867133943,0.00148,67647.0,67634.0,0.11892071]
[1772867134142,0.07391346,67647.0,67636.0,0.11892071]
[1772867134318,0.07424811,67648.0,67637.0,0.02954191]
[1772867134319,0.00033561,67648.0,67637.0,0.02954191]
[1772867134523,0.00033561,67648.0,67638.0,0.02954191]
[1772867134900,0.00033561,67648.0,67639.0,0.03102191]
[1772867135104,0.00033561,67648.0,67640.0,0.02954191]
[1772867135313,0.02664499,67646.0,67637.0,0.00148]
[1772867135527,0.07391447,67646.0,67637.0,0.07540358]
[1772867135830,0.1008937,67648.0,67637.0,0.07540358]
[1772867136229,0.1008937,67648.0,67620.0,0.22260829]
[1772867136230,0.07424871,67648.0,67620.0,0.22260829]
[1772867136590,0.07424871,67648.0,67548.0,0.13218377]
[1772867136591,0.07424871,67648.0,67609.0,0.00148]
[1772867136592,0.02664499,67637.0,67609.0,0.00148]
[1772867136734,0.02664499,67633.0,67610.0,0.00148]
[1772867136935,0.11042031,67630.0,67614.0,0.0002]
[1772867137143,0.02812499,67629.0,67614.0,0.0002]
[1772867137338,0.02664499,67629.0,67614.0,0.0002]
[1772867137681,0.15042503,67646.0,67616.0,0.07394699]
[1772867137682,0.02664499,67631.0,67616.0,0.07394699]
[1772867138104,0.02664499,67631.0,67617.0,0.00148]
[1772867138486,0.02664499,67631.0,67620.0,0.001]
[1772867138988,0.02664499,67631.0,67617.0,0.00148]
[1772867139457,0.00148,67641.0,67619.0,0.07394371]
[1772867139644,0.07392184,67640.0,67623.0,0.11892071]
[1772867139846,0.07392184,67640.0,67613.0,0.00148]
[1772867139847,0.11042031,67638.0,67613.0,0.00148]
[1772867140048,1.720285,67638.0,67614.0,0.07562891]
[1772867140290,0.11042031,67634.0,67615.0,0.00148]
[1772867140438,0.21732143,67640.0,67614.0,0.0002]
[1772867140439,0.11042031,67630.0,67614.0,0.0002]
[1772867140634,0.02972287,67627.0,67614.0,0.0002]
[1772867140878,0.00148,67626.0,67614.0,0.0002]
[1772867141078,0.00148,67626.0,67614.0,0.07414901]
[1772867141722,0.07393715,67625.0,67614.0,0.07414901]
[1772867141921,0.07393715,67625.0,67614.0,0.19318536]
[1772867142123,0.07393715,67625.0,67614.0,0.07426465]
[1772867142287,0.07393715,67625.0,67614.0,0.11923635]
[1772867143274,0.07393713,67626.0,67612.0,0.00148]
[1772867143483,0.02972287,67624.0,67612.0,0.00148]
[1772867144085,0.07393934,67623.0,67613.0,0.07395027]
[1772867144288,0.07393934,67623.0,67613.0,0.19287098]
[1772867145109,0.07393934,67623.0,67614.0,0.0002]
[1772867145797,0.07393861,67624.0,67614.0,0.0002]
[1772867145997,0.07405167,67626.0,67614.0,0.0002]
[1772867145998,0.07393715,67625.0,67615.0,0.07394808]
[1772867146394,0.00148,67627.0,67616.0,0.14798623]
[1772867146599,0.07393715,67625.0,67616.0,0.14810179]
[1772867146801,0.07393606,67626.0,67616.0,0.14810179]
[1772867147026,0.07393443,67628.0,67616.0,0.14810179]
[1772867147225,0.07393233,67630.0,67616.0,0.11903627]
[1772867147479,0.07393233,67630.0,67618.0,0.11892071]
[1772867147635,0.07393233,67630.0,67619.0,0.00148]
[1772867147843,0.07393026,67632.0,67620.0,0.14798623]
[1772867148044,0.07392248,67639.0,67620.0,0.14798623]
[1772867148045,0.07591036,67650.0,67624.0,0.02906552]
[1772867148360,0.11042031,67647.0,67619.0,0.07969352]
[1772867148572,0.14522392,67648.0,67620.0,0.00148]
[1772867148757,0.14014318,67647.0,67620.0,0.00148]
[1772867148955,0.14522392,67648.0,67620.0,0.02906552]
[1772867149163,0.11042031,67647.0,67621.0,0.00148]
[1772867149331,0.11042031,67645.0,67621.0,0.00148]
[1772867149530,0.11042031,67643.0,67621.0,0.00148]
[1772867149780,0.02972287,67640.0,67621.0,0.00148]
[1772867149979,0.11042031,67638.0,67619.0,0.07969352]
[1772867150180,0.11042031,67635.0,67622.0,0.07542026]
[1772867150793,0.07392403,67637.0,67622.0,0.07542026]
[1772867150984,0.11042031,67634.0,67616.0,0.00011556]
[1772867151178,0.02972287,67631.0,67616.0,0.00011556]
[1772867151381,0.02972287,67627.0,67616.0,0.00011556]
[1772867151591,0.11042031,67624.0,67616.0,0.00011556]
[1772867152194,0.07393934,67623.0,67616.0,0.00011556]
[1772867153490,0.07393934,67623.0,67588.0,0.2207525]
[1772867153491,0.11042031,67620.0,67600.0,1e-08]
[1772867153677,0.11042031,67620.0,67581.0,0.07398467]
[1772867153678,0.02972287,67607.0,67592.0,1e-08]
[1772867153902,0.11042031,67604.0,67592.0,1e-08]
[1772867154113,0.07396449,67600.0,67592.0,1e-08]
[1772867154310,0.00148,67599.0,67592.0,1e-08]
[1772867154523,0.00148,67599.0,67584.0,0.0002]
[1772867154524,0.11042031,67598.0,67584.0,0.0002]
[1772867154739,0.11042031,67594.0,67580.0,0.00148]
[1772867154959,0.02972287,67591.0,67580.0,0.00148]
[1772867155100,0.11042031,67590.0,67580.0,0.00148]
[1772867155504,0.11042031,67590.0,67580.0,0.00186563]
[1772867155702,0.11042031,67590.0,67580.0,0.0743715]
[1772867156148,0.07397653,67589.0,67580.0,0.00038563]
[1772867157017,0.07397653,67589.0,67580.0,0.0743715]
[1772867158015,0.07397653,67589.0,67585.0,0.0002]
[1772867159470,0.07497653,67589.0,67585.0,0.0002]
[1772867160068,0.00148,67591.0,67585.0,0.0002]
[1772867160271,0.07545467,67591.0,67585.0,0.0002]
[1772867161007,0.07545467,67591.0,67565.0,1e-08]
[1772867161008,0.14312188,67590.0,67565.0,1e-08]
[1772867161210,3.088004,67579.0,67557.0,1e-08]
[1772867161513,3.088004,67579.0,67553.0,1e-08]
[1772867161514,0.03091652,67572.0,67553.0,1e-08]
[1772867161646,0.1231809,67569.0,67553.0,1e-08]
[1772867161869,0.03091652,67566.0,67553.0,1e-08]
[1772867162072,0.11851565,67564.0,67553.0,1e-08]
[1772867162282,0.00148,67563.0,67553.0,1e-08]
[1772867162478,0.11999565,67563.0,67553.0,1e-08]
[1772867162928,0.00148,67566.0,67553.0,1e-08]
[1772867163127,0.00148,67566.0,67554.0,0.1178528]
[1772867163304,0.00011552,67572.0,67554.0,0.14794829]
[1772867163509,0.07399733,67570.0,67555.0,0.14806829]
[1772867163684,0.07399733,67570.0,67556.0,0.1178528]
[1772867164083,0.001,67564.0,67556.0,0.1178528]
[1772867164319,0.07399733,67570.0,67556.0,0.1178528]
[1772867164834,0.07399733,67570.0,67556.0,0.06506988]
[1772867165131,0.00148,67569.0,67556.0,0.06506988]
[1772867165564,0.07399952,67568.0,67556.0,0.03021549]
[1772867166480,0.07547952,67569.0,67558.0,0.03021549]
[1772867166595,0.07399952,67568.0,67558.0,0.03021549]
[1772867167614,0.00011552,67572.0,67559.0,0.00148]
[1772867167816,0.00011552,67572.0,67530.0,0.02961352]
[1772867167817,0.17266419,67570.0,67530.0,0.02961352]
[1772867168019,0.17266419,67570.0,67525.0,0.0004]
[1772867168020,0.02954231,67561.0,67525.0,0.0004]
[1772867168238,0.00575,67565.0,67526.0,0.07404514]
[1772867168239,0.02954231,67556.0,67526.0,0.07404514]
[1772867168564,0.11851565,67551.0,67529.0,0.0755218]
[1772867168766,0.11851565,67549.0,67529.0,0.00148]
[1772867168978,0.02954231,67546.0,67516.0,0.02961352]
[1772867169175,0.00188,67550.0,67515.0,0.00148]
[1772867169176,0.11851565,67543.0,67515.0,0.00148]
[1772867169380,0.11851565,67541.0,67518.0,0.07405392]
[1772867169585,0.11851565,67541.0,67516.0,0.07405604]
[1772867169586,0.07379074,67538.0,67516.0,0.07405604]
[1772867169844,0.11851565,67537.0,67517.0,0.07405435]
[1772867170065,0.11851565,67533.0,67505.0,0.14746632]
[1772867170210,0.11851565,67529.0,67504.0,0.07406942]
[1772867170429,0.00148,67532.0,67502.0,0.0766176]
[1772867170436,0.11851565,67524.0,67502.0,0.00254584]
[1772867170631,0.15605428,67526.0,67492.0,0.0001816]
[1772867170632,0.15605428,67526.0,67500.0,0.5371533]
[1772867170633,0.11851565,67521.0,67500.0,0.5371533]
[1772867170833,0.07965617,67538.0,67500.0,0.5371533]
[1772867170834,0.02954231,67535.0,67504.0,0.1178528]
[1772867171032,0.07965617,67538.0,67500.0,0.5371533]
[1772867171033,0.11851565,67531.0,67500.0,0.5371533]
[1772867171238,2.319982,67527.0,67500.0,0.14929073]
[1772867171436,0.249,67530.0,67513.0,0.0002]
[1772867171437,0.02954231,67525.0,67513.0,0.0002]
[1772867171638,0.14805796,67524.0,67513.0,0.0002]
[1772867171976,0.249,67530.0,67506.0,0.0002]
[1772867171977,0.11851565,67522.0,67506.0,0.0002]
[1772867172189,0.02954231,67523.0,67506.0,0.0002]
[1772867172363,0.11851565,67522.0,67506.0,0.0002]
[1772867172565,0.00148,67523.0,67506.0,0.0002]
[1772867172566,0.00148,67523.0,67506.0,0.00168]
[1772867172715,0.00148,67523.0,67507.0,0.1178528]
[1772867172918,0.07403215,67539.0,67506.0,0.03129352]
[1772867172919,0.11851565,67534.0,67509.0,0.1178528]
[1772867173169,0.23008112,67544.0,67506.0,0.00168]
[1772867173170,0.11851565,67539.0,67512.0,0.02961352]
[1772867173331,0.11851565,67539.0,67506.0,0.00168]
[1772867173332,0.11851565,67532.0,67506.0,0.0002]
[1772867173549,0.00148,67533.0,67506.0,0.0002]
[1772867173550,0.07404445,67527.0,67506.0,0.0002]
[1772867173749,0.02954231,67523.0,67506.0,0.0002]
[1772867173944,0.11851565,67522.0,67506.0,0.0002]
[1772867174167,0.11851565,67522.0,67509.0,0.001]
[1772867174367,0.07402914,67541.0,67506.0,0.0002]
[1772867174368,0.11851565,67532.0,67506.0,0.0002]
[1772867174566,0.11851565,67519.0,67506.0,0.0012]
[1772867174817,0.07989818,67538.0,67506.0,0.0012]
[1772867174818,0.07989818,67538.0,67506.0,0.0002]
[1772867175019,0.11851565,67535.0,67506.0,0.0002]
[1772867175157,0.11851565,67533.0,67506.0,0.0002]
[1772867175523,0.02954231,67528.0,67506.0,0.0002]
[1772867175697,0.11851565,67526.0,67506.0,0.0002]
[1772867175856,0.02954231,67523.0,67506.0,0.0002]
[1772867176057,0.11851565,67522.0,67506.0,0.0002]
[1772867176266,0.00148,67525.0,67506.0,0.0002]
[1772867176470,0.10358381,67530.0,67506.0,0.0002]
[1772867176761,0.11999565,67529.0,67507.0,0.1178528]
[1772867176964,0.10358381,67530.0,67507.0,0.1178528]
[1772867176965,0.11851565,67527.0,67507.0,0.1178528]
[1772867177224,0.10358381,67530.0,67506.0,0.00268]
[1772867177225,0.00152,67526.0,67506.0,0.00268]
[1772867177417,0.11851565,67525.0,67506.0,0.00168]
[1772867177613,0.02954231,67524.0,67506.0,0.00168]
[1772867177770,0.14805796,67523.0,67507.0,0.07406639]
[1772867177970,0.14805796,67523.0,67507.0,0.07426639]
[1772867178307,0.11851565,67521.0,67507.0,0.07426639]
[1772867178536,0.11851565,67519.0,67507.0,0.07426639]
[1772867178718,0.19255758,67530.0,67508.0,0.1178528]
[1772867179016,0.02954231,67534.0,67512.0,0.1178528]
[1772867179017,0.11851565,67533.0,67512.0,0.1178528]
[1772867179223,0.11851565,67533.0,67511.0,0.02961352]
[1772867179426,0.02954231,67530.0,67507.0,0.07426639]
[1772867179582,0.02954231,67526.0,67507.0,0.0002]
[1772867179770,0.11851565,67522.0,67507.0,0.0002]
[1772867179974,0.02954231,67519.0,67507.0,0.0002]
[1772867180178,0.12003565,67518.0,67506.0,0.0002]
[1772867180420,0.11851565,67516.0,67501.0,0.07407246]
[1772867180620,0.14805796,67516.0,67501.0,0.07407246]
[1772867180822,0.11851565,67516.0,67501.0,0.07407246]
[1772867180978,0.00152,67515.0,67507.0,0.001]
[1772867181178,0.11799566,67516.0,67500.0,0.24949128]
[1772867181179,0.11851565,67513.0,67500.0,0.24949128]
[1772867181396,0.11836092,67513.0,67500.0,0.24949128]
[1772867181600,0.11847627,67513.0,67500.0,0.24949128]
[1772867181931,0.11851565,67511.0,67500.0,0.24949128]
[1772867182507,0.11851565,67511.0,67494.0,0.07408065]
[1772867182689,0.11851565,67507.0,67492.0,0.0001816]